Cogmind - Beta 9.6 @@@ ROGUE MODE // 2020.06.14 @ 16:36:12 Player: Vectis Result: Destroyed by Lightning with EMDS Performance ------------- Evolutions (5) 2500 Regions Visited (22) 4400 Robots Destroyed (190) 950 Value Destroyed (6024) 6024 Prototype IDs (23) 460 Alien Tech Used (1) 200 Bonus (3538) 3538 TOTAL SCORE: 18072 Bonus ------- High Alert Combat Kills 412 Follower Combat Kills 1329 Network Hubs Disabled 600 Met Data Miner 300 Met Imprinter 300 Built Enhanced Grunts 300 A7 Reached Mainframe 300 Met R17 at Cetus 500 Friendly Fire -503 Cogmind --------- Core Integrity 0/1000 Matter 272/300 Energy 99/100 System Corruption 30% Temperature Cool (0) Movement Core (50) Location -5/Hub_04(d) Parts ------- > --- POWER (1) -------- (None) > --- PROPULSION (3) --- (None) > --- UTILITY (11) ----- Advanced Signal Interpreter Experimental Terrain Scan Processor Advanced Targeting Computer Advanced Targeting Computer Improved Target Analyzer Improved System Shield Improved System Shield > --- WEAPON (3) ------- (None) > --- INVENTORY (4) ---- Dimensional Node Initializer KE Penetrator Falx Peak State ------------ > --- POWER ------------ Micro Fission Core > --- PROPULSION ------- Field Propulsion Drive Field Propulsion Drive Experimental Cesium-ion Thruster > --- UTILITY ---------- Medium Storage Unit Advanced Weight Redist. System Enhanced Optical Array Advanced Signal Interpreter Experimental Terrain Scanner Experimental Terrain Scan Processor Advanced Targeting Computer Advanced Targeting Computer Improved Target Analyzer Improved Armor Integrity Analyzer Advanced Hacking Suite > --- WEAPON ----------- Hypervelocity Coil Gun Improved KE Penetrator Improved KE Penetrator > --- INVENTORY -------- Quantum Reactor Advanced Hacking Suite Improved System Shield Improved System Shield Dimensional Node Initializer Falx [Rating: 96] Favorites ----------- Power Cooled Ion Engine Engine Cooled Ion Engine Power Core Micro Fission Core Propulsion Light Treads Treads Light Treads Leg Titanium Leg Flight Unit Improved VTOL Module Utility Medium Storage Unit Device Experimental Sensor Array Storage Medium Storage Unit Processor Advanced Signal Interpreter Hackware Hacking Suite Protection Light Armor Plating Weapon Light Assault Rifle Energy Gun Beam Rifle Energy Cannon Beam Cannon Ballistic Gun Light Assault Rifle Ballistic Cannon Assault Cannon Launcher Rocket Launcher Slashing Weapon Falx Build | -11 -10 -10 -9 -9 -9 -8 -8 -7 -7 -7 -7 -6 -6 -6 -6 -6 -5 -5 -5 -5 -5 -5 ------- Run | Scr Mat Min Mat Min Exi Min Mat Fac Low Low Zio Pro Fac Low Low Dat Pro Fac Ext Cet Arc Hub Slots Evolved 10 | . . . 2 . . . 2 2 . . . . 2 . . . . 2 . . . . Power . | . . . . . . . . . . . . . . . . . . . . . . . Propulsion 1 | . . . 1 . . . . . . . . . . . . . . . . . . . Utility 9 | . . . 1 . . . 2 2 . . . . 2 . . . . 2 . . . . Weapon . | . . . . . . . . . . . . . . . . . . . . . . . Parts Attached 218 | 6 16 1 35 3 1 1 39 15 . . . 1 11 3 2 . 2 33 18 7 1 23 Power 16 | 1 1 . 4 . . . 3 2 . . . . 1 . . . . 1 1 . . 2 Engine 10 | 1 1 . 4 . . . 2 2 . . . . . . . . . . . . . . Core 6 | . . . . . . . 1 . . . . . 1 . . . . 1 1 . . 2 Reactor . | . . . . . . . . . . . . . . . . . . . . . . . Propulsion 65 | 2 5 . 18 1 . . 18 4 . . . 1 4 . . . . 4 1 2 . 5 Treads 40 | 2 5 . 15 1 . . 17 . . . . . . . . . . . . . . . Leg 3 | . . . 3 . . . . . . . . . . . . . . . . . . . Wheel . | . . . . . . . . . . . . . . . . . . . . . . . Hover . | . . . . . . . . . . . . . . . . . . . . . . . Flight 22 | . . . . . . . 1 4 . . . 1 4 . . . . 4 1 2 . 5 Utility 52 | 1 2 . 4 . 1 . 5 8 . . . . 5 1 . . . 11 7 2 1 4 Device 17 | . . . . . . . . 1 . . . . 2 1 . . . 4 6 1 1 1 Storage 7 | 1 1 . 3 . 1 . . 1 . . . . . . . . . . . . . . Processor 10 | . . . . . . . 1 3 . . . . . . . . . 4 1 1 . . Hackware 13 | . . . . . . . 1 3 . . . . 3 . . . . 3 . . . 3 Protection 5 | . 1 . 1 . . . 3 . . . . . . . . . . . . . . . Artifact . | . . . . . . . . . . . . . . . . . . . . . . . Weapon 85 | 2 8 1 9 2 . 1 13 1 . . . . 1 2 2 . 2 17 9 3 . 12 Energy Gun 6 | 2 2 . . . . . 2 . . . . . . . . . . . . . . . Energy Cannon 7 | . . . 4 1 . . 2 . . . . . . . . . . . . . . . Ballistic Gun 59 | . 6 1 5 . . 1 7 . . . . . . 2 2 . 2 14 8 3 . 8 Ballistic Cannon 2 | . . . . . . . 2 . . . . . . . . . . . . . . . Launcher 1 | . . . . 1 . . . . . . . . . . . . . . . . . . Special Weapon . | . . . . . . . . . . . . . . . . . . . . . . . Impact Weapon . | . . . . . . . . . . . . . . . . . . . . . . . Slashing Weapon 10 | . . . . . . . . 1 . . . . 1 . . . . 3 1 . . 4 Piercing Weapon . | . . . . . . . . . . . . . . . . . . . . . . . Special Melee Weapon . | . . . . . . . . . . . . . . . . . . . . . . . Unidentified Prototypes 7 | . . . 1 . . . 2 . . . . . 1 1 . . . 1 . 1 . . Parts Lost 33 | . 3 . 1 . . . 8 . . . . . 2 . . . . 1 5 . . 13 Power 1 | . . . . . . . . . . . . . . . . . . . . . . 1 Propulsion 10 | . . . . . . . 3 . . . . . 2 . . . . . 1 . . 4 Utility 13 | . 1 . 1 . . . 2 . . . . . . . . . . 1 1 . . 7 Weapon 9 | . 2 . . . . . 3 . . . . . . . . . . . 3 . . 1 Highest Loss Streak 9 | . 1 . 1 . . . 3 . . . . . 1 . . . . 1 4 . . 9 Average Slot Usage (%) 94 | . 96 100 94 99 100 100 96 88 92 92 92 92 91 92 89 87 87 91 94 94 100 81 Engine 6 | . 14 14 10 11 11 11 6 5 7 7 7 7 . . . . . . . . . . Core 2 | . . . . . . . 2 . . . . . 5 6 6 6 6 5 5 5 5 3 Treads 15 | . 28 28 16 32 33 33 26 . . . . . . . . . . . . . . . Leg 1 | . . . 15 . . . . . . . . . . . . . . . . . . . Flight 7 | . . . . . . . . 20 23 23 23 23 19 18 18 18 18 16 15 16 16 11 Device 3 | . . . . . . . . 6 7 7 7 7 6 6 6 6 6 10 15 6 9 9 Storage 17 | . 17 28 23 33 33 33 27 8 7 7 7 7 6 6 6 6 6 5 5 5 5 3 Processor 8 | . . . . . . . 8 17 7 7 7 7 6 6 6 6 6 15 27 36 38 34 Hackware 10 | . . . . . . . 1 17 30 30 30 30 39 37 37 37 37 26 11 11 6 6 Protection 2 | . 7 . 5 . . . 5 . . . . . . . . . . . . . . . Energy Cannon 2 | . . . 7 11 11 5 1 . . . . . . . . . . . . . . . Ballistic Gun 11 | . 22 28 14 11 11 17 12 . . . . . . 3 2 . . 4 10 11 16 9 Slashing Weapon 1 | . . . . . . . . 6 7 7 7 7 6 6 6 6 6 3 . . . . Naked Turns . | . . . . . . . . . . . . . . . . . . . . . . . Heaviest Build 54 | 13 19 19 38 38 46 46 54 16 16 16 16 16 20 32 32 20 20 35 35 31 32 32 Greatest Support 62 | 40 40 40 60 60 60 60 62 18 18 18 18 19 20 20 20 20 20 35 30 33 33 34 Greatest Overweight (x) 17 | . . . 1 . . . 17 . . . . . 1 1 1 . . 1 1 . . 4 Average Overweight (x) . | . . . . . . . . . . . . . . . . . . . . . . . Largest Inventory Capacity 18 | 6 10 10 16 16 18 18 18 18 8 8 8 8 8 8 8 8 8 8 8 8 8 8 Average Capacity 11 | 4 7 10 12 16 17 18 18 8 8 8 8 8 8 8 8 8 8 8 8 8 8 7 Most Carried 18 | 4 10 10 16 16 18 18 18 18 6 8 8 8 8 8 8 8 8 8 8 8 8 8 Average Carried 10 | 2 6 10 11 15 16 18 17 7 6 7 8 7 7 7 7 8 7 7 7 7 7 6 Final Capacity 18 | 6 10 10 16 16 18 18 18 8 8 8 8 8 8 8 8 8 8 8 8 8 8 4 Final Carried 18 | 4 10 10 16 16 18 18 18 6 6 8 8 8 8 8 8 8 8 7 8 8 8 3 Class Distribution -------------------- 48% | Mutant 12% | Wizard-Sprinter 10% | Scavenger-Mutant 9% | Hacker-Sprinter 4% | Hacker-Scout 3% | Commander-Sprinter Dominant Class ---------------- Mutant | -10/Materials Mutant | -10/Mines Mutant | -9/Materials Mutant | -9/Mines Mutant | -9/Exiles Mutant | -8/Mines Mutant | -8/Materials Hacker-Sprinter | -7/Factory Hacker-Sprinter | -7/Lower Caves Hacker-Sprinter | -7/Lower Caves Hacker-Sprinter | -7/Zion Hacker-Sprinter | -6/Proximity Caves Wizard-Sprinter | -6/Factory Wizard-Sprinter | -6/Lower Caves Wizard-Sprinter | -6/Lower Caves Wizard-Sprinter | -6/Data Miner Wizard-Sprinter | -5/Proximity Caves Wizard-Sprinter | -5/Factory Hacker-Scout | -5/Extension Commander-Sprinter | -5/Cetus Commander-Scout | -5/Archives Hacker-Mutant | -5/Hub_04(d) Resources | -11 -10 -10 -9 -9 -9 -8 -8 -7 -7 -7 -7 -6 -6 -6 -6 -6 -5 -5 -5 -5 -5 -5 ----------- Run | Scr Mat Min Mat Min Exi Min Mat Fac Low Low Zio Pro Fac Low Low Dat Pro Fac Ext Cet Arc Hub Matter Collected 5693 | 201 328 28 386 180 . 38 1187 33 117 . . 10 115 90 70 . 40 698 1282 250 140 500 Remotely . | . . . . . . . . . . . . . . . . . . . . . . . Salvage Created 8770 | . 591 41 995 136 . 49 2142 55 . . . . 286 70 70 . . 914 1827 532 308 754 Parts 474 | . 38 6 66 8 . 4 128 6 . . . . 5 2 6 . . 50 81 27 12 35 Haulers Intercepted 12 | . 2 . 3 . . . 5 . . . . . . . . . . 1 1 . . . Recyclers Shooed 9 | . . . 2 . . . 3 . . . . . 1 . . . . . 2 . . 1 Parts Field Recycled . | . . . . . . . . . . . . . . . . . . . . . . . Retrieved Matter . | . . . . . . . . . . . . . . . . . . . . . . . Parts Self-Destructed 10 | . . . . . . . . . 2 . . . . 2 6 . . . . . . . Prevented 4 | . . . . . . . . . . . . . . 4 . . . . . . . . Kills | -11 -10 -10 -9 -9 -9 -8 -8 -7 -7 -7 -7 -6 -6 -6 -6 -6 -5 -5 -5 -5 -5 -5 ------- Run | Scr Mat Min Mat Min Exi Min Mat Fac Low Low Zio Pro Fac Low Low Dat Pro Fac Ext Cet Arc Hub Combat Hostiles Destroyed 128 | . 15 3 23 3 . 3 44 . . . . . . 1 1 . . 5 14 8 2 6 Guns 96 | . 15 3 9 2 . 1 29 . . . . . . 1 1 . . 5 14 8 2 6 Cannons 31 | . . . 14 . . 2 15 . . . . . . . . . . . . . . . AOE 1 | . . . . 1 . . . . . . . . . . . . . . . . . . Classes Destroyed 12 | . 6 . 2 1 . . 1 . . . . . . . . . . 1 1 . . . Worker 18 | . . . 1 1 . . 3 . . . . . 1 . . . . 8 . . . 4 Builder 2 | . . . . . . . . . . . . . . . . . . . 1 . . 1 Hauler 12 | . 2 . 3 . . . 5 . . . . . . . . . . 1 1 . . . Recycler 13 | . 1 . 1 . . . . . . . . . 2 . . . . 2 6 . . 1 Operator 6 | . 1 . 1 . . . . 1 . . . . 1 . . . . . . . 2 . Watcher 9 | . 1 . 1 . . . 1 1 . . . . . . . . . 1 2 1 . 1 Swarmer 43 | . 9 3 11 . . 3 8 . . . . . . . . . . . 5 2 . 2 Grunt 42 | . 6 . 8 2 . . 20 . . . . . . 1 . . . . 2 2 . 1 Duelist 2 | . . . . 1 . . 1 . . . . . . . . . . . . . . . Sentry 24 | . . . 4 . . . 10 . . . . . . . . . . 1 4 . 2 3 Hunter 6 | . . . . . . . 5 . . . . . . . 1 . . . . . . . Programmer 7 | . . . . . . . . . . . . . . . . . . 4 3 . . . Cetus Guard 4 | . . . . . . . . . . . . . . . . . . . . 4 . . Butcher 2 | . . . . . . . . . . . . . . . . . . . . . 1 1 Best Kill Streak 7 | . 4 3 6 3 . 3 7 1 . . . . 2 1 1 . . 3 5 4 3 5 Combat Bots Only 6 | . 4 3 5 3 . 3 6 . . . . . . 1 1 . . 2 4 4 1 3 Max Kills in Single Turn 2 | . 1 1 1 2 . 1 2 1 . . . . 1 1 1 . . 1 2 1 2 1 Gunslinging . | . . . . . . . . . . . . . . . . . . . . . . . Exploded 1 | . . . . 1 . . . . . . . . . . . . . . . . . . Melee . | . . . . . . . . . . . . . . . . . . . . . . . Uniques/NPCs Destroyed . | . . . . . . . . . . . . . . . . . . . . . . . Combat | -11 -10 -10 -9 -9 -9 -8 -8 -7 -7 -7 -7 -6 -6 -6 -6 -6 -5 -5 -5 -5 -5 -5 -------- Run | Scr Mat Min Mat Min Exi Min Mat Fac Low Low Zio Pro Fac Low Low Dat Pro Fac Ext Cet Arc Hub Damage Taken 8076 | . 684 98 1064 150 . 112 2927 53 . . . 11 77 . . . . 401 915 26 77 1481 Core 1797 | . 96 17 208 18 . 10 380 . . . . 11 37 . . . . 85 273 26 56 580 Absorbed by Shields 24 | . . . . . . . . . . . . . . . . . . . . 24 . . Core Remaining (%) 69 | 100 . 54 . . . 41 30 . . . . 98 . . . . 95 . . . . . Volleys Fired 559 | . 83 11 81 3 . 6 181 . . . . . . 5 5 . 2 34 87 18 10 33 Largest 3 | . 2 2 2 2 . 2 2 . . . . . . 2 2 . 2 3 3 2 3 3 Hottest 120 | . 90 40 120 83 . 83 100 . . . . . . 70 70 . 70 115 115 70 105 105 Shots Fired 1138 | . 160 22 162 6 . 12 357 . . . . . . 10 10 . 4 83 168 35 30 79 Gun 988 | . 160 22 102 3 . 6 276 . . . . . . 10 10 . 4 83 168 35 30 79 Cannon 149 | . . . 60 2 . 6 81 . . . . . . . . . . . . . . . Launcher 1 | . . . . 1 . . . . . . . . . . . . . . . . . . Special . | . . . . . . . . . . . . . . . . . . . . . . . Kinetic 980 | . 126 22 102 3 . 6 302 . . . . . . 10 10 . 4 83 168 35 30 79 Thermal 149 | . 26 . 60 2 . 6 55 . . . . . . . . . . . . . . . Explosive 1 | . . . . 1 . . . . . . . . . . . . . . . . . . Electromagnetic 8 | . 8 . . . . . . . . . . . . . . . . . . . . . Robot Hit Streak 16 | . 13 5 15 12 . 6 16 . . . . . . 3 . . 3 13 12 8 5 10 Robot Miss Streak 8 | . 5 2 7 . . 4 4 . . . . . . 2 . . 1 5 4 2 2 8 Penetration Max 1 | . . . . . . . . . . . . . . 1 . . 1 1 1 1 1 1 Secondary Targets 7 | . 1 . . . . . 2 . . . . . . . . . . . . 3 . 1 Max Gunslinging Chain 1 | . 1 . . . . . 1 . . . . . . . . . . . . 1 . 1 Shots Hit Robots 754 | . 105 14 100 5 . 6 258 6 . . . . 9 6 . . 3 59 98 24 19 42 Core Hits 332 | . 42 6 45 5 . 3 107 2 . . . . 4 3 1 . 1 21 40 14 10 28 Critical Hits 101 | . . . 1 . . . 3 . . . . . . 2 1 . . 15 50 12 8 9 Critical Kills 50 | . . . 1 . . . 2 . . . . . . 1 1 . . 6 22 8 4 5 Critical Parts Destroyed 41 | . . . . . . . 1 . . . . . . 1 . . . 7 20 4 4 4 Melee Attacks 85 | . . . . . . . . 9 2 . 6 1 20 2 . . 3 26 9 . . 7 Impact . | . . . . . . . . . . . . . . . . . . . . . . . Slashing 85 | . . . . . . . . 9 2 . 6 1 20 2 . . 3 26 9 . . 7 Piercing . | . . . . . . . . . . . . . . . . . . . . . . . Sneak Attacks 16 | . . . . . . . . . . . . . 5 . . . . 9 1 . . 1 Combat Hostiles . | . . . . . . . . . . . . . . . . . . . . . . . Follow-up Attacks . | . . . . . . . . . . . . . . . . . . . . . . . Damage Inflicted 13236 | . 987 109 1353 194 . 103 3946 257 . . . . 805 95 6 . 22 1780 1146 385 478 1570 Guns 7248 | . 985 109 658 36 . 27 2481 . . . . . . 95 6 . 22 330 857 385 478 779 Cannons 2269 | . . . 692 36 . 76 1465 . . . . . . . . . . . . . . . Explosions 753 | . . . . 122 . . . . . . . . . . . . . . . . . 631 Melee 2941 | . . . . . . . . 257 . . . . 805 . . . . 1450 289 . . 140 Ramming 25 | . 2 . 3 . . . . . . . . . . . . . . . . . . 20 Kinetic 7453 | . 644 109 658 36 . 27 3027 . . . . . . 95 6 . 22 330 857 385 478 779 Thermal 1957 | . 234 . 692 36 . 76 919 . . . . . . . . . . . . . . . Explosive 122 | . . . . 122 . . . . . . . . . . . . . . . . . . Electromagnetic 738 | . 107 . . . . . . . . . . . . . . . . . . . . 631 Impact . | . . . . . . . . . . . . . . . . . . . . . . . Slashing 2941 | . . . . . . . . 257 . . . . 805 . . . . 1450 289 . . 140 Piercing . | . . . . . . . . . . . . . . . . . . . . . . . Highest Corruption 27 | . . . . . . . . . . . . . . . . . . 5 7 7 7 27 Average Corruption 7 | . . . . . . . . . . . . . . . . . . 4 6 7 7 12 Corruption Purged . | . . . . . . . . . . . . . . . . . . . . . . . Effects 100 | . . . . . . . . . . . . . . . . . . 7 47 14 3 29 Message Errors 16 | . . . . . . . . . . . . . . . . . . 1 9 2 2 2 Matter Fused 18 | . . . . . . . . . . . . . . . . . . 3 8 3 . 4 Heat Flow Errors 6 | . . . . . . . . . . . . . . . . . . . 3 1 . 2 Energy Discharges 9 | . . . . . . . . . . . . . . . . . . 1 4 1 . 3 Parts Rejected 2 | . . . . . . . . . . . . . . . . . . . . 1 . 1 Data Loss (minor) 8 | . . . . . . . . . . . . . . . . . . 2 3 2 . 1 Data Loss (major) 3 | . . . . . . . . . . . . . . . . . . . 1 1 . 1 Misfires 1 | . . . . . . . . . . . . . . . . . . . . . . 1 Misdirections 6 | . . . . . . . . . . . . . . . . . . . . . . 6 Targeting Errors 27 | . . . . . . . . . . . . . . . . . . . 16 3 1 7 Weapon Failures 4 | . . . . . . . . . . . . . . . . . . . 3 . . 1 Overload Shots . | . . . . . . . . . . . . . . . . . . . . . . . Overflow Damage 1081 | . . . . . . . 28 63 . . . . 451 . . . . 240 145 . . 154 Projectiles 28 | . . . . . . . 28 . . . . . . . . . . . . . . . Explosions 44 | . . . . . . . . . . . . . . . . . . . . . . 44 Melee 1009 | . . . . . . . . 63 . . . . 451 . . . . 240 145 . . 110 Knockbacks 10 | . . . . . . . 10 . . . . . . . . . . . . . . . Impact . | . . . . . . . . . . . . . . . . . . . . . . . Kinetic 10 | . . . . . . . 10 . . . . . . . . . . . . . . . Secondary . | . . . . . . . . . . . . . . . . . . . . . . . Self-Inflicted Damage 345 | . . . . 40 . . 88 . . . . . . . . . . . . . . 217 Shots 6 | . . . . 1 . . 2 . . . . . . . . . . . . . . 3 Rammed 6 | . 1 . . . . . . . . . . . . . . . . . . . . 5 Targets Rammed 7 | . 1 . 1 . . . . . . . . . . . . . . . . . . 5 Kicked 1 | . . . 1 . . . . . . . . . . . . . . . . . . . Crushed . | . . . . . . . . . . . . . . . . . . . . . . . Highest Temperature 375 | . 195 . 375 6 . 36 333 . . . . . 6 . . . . 112 252 245 112 230 Average Temperature 60 | . 41 . 102 4 . 18 51 . . . . . 6 . . . . 40 63 47 46 88 Received Heat Transfer 1461 | . 177 . 294 6 . . 864 27 . . . . 39 . . . . . 9 . . 45 Effects 2 | . . . 1 . . . 1 . . . . . . . . . . . . . . . Energy Bleed 1 | . . . 1 . . . . . . . . . . . . . . . . . . . Interference 1 | . . . . . . . 1 . . . . . . . . . . . . . . . Siege Activations . | . . . . . . . . . . . . . . . . . . . . . . . Robots Corrupted . | . . . . . . . . . . . . . . . . . . . . . . . Combat Hostiles . | . . . . . . . . . . . . . . . . . . . . . . . Parts Fried 1 | . . . . . . . 1 . . . . . . . . . . . . . . . Impact Corruptions . | . . . . . . . . . . . . . . . . . . . . . . . Robots Melted . | . . . . . . . . . . . . . . . . . . . . . . . Combat Hostiles . | . . . . . . . . . . . . . . . . . . . . . . . Parts Melted 3 | . 1 . . . . 1 . . . . . . . . . . . . 1 . . . Heat Transferred 3950 | . 620 . 1406 74 . 148 1702 . . . . . . . . . . . . . . . Parts Sabotaged . | . . . . . . . . . . . . . . . . . . . . . . . Parts Stolen . | . . . . . . . . . . . . . . . . . . . . . . . Parts Stripped . | . . . . . . . . . . . . . . . . . . . . . . . Power Chain Reactions 5 | . . . . . . . . . . . . . . . . . . . . . . 5 Missiles Intercepted . | . . . . . . . . . . . . . . . . . . . . . . . Alert | -11 -10 -10 -9 -9 -9 -8 -8 -7 -7 -7 -7 -6 -6 -6 -6 -6 -5 -5 -5 -5 -5 -5 ------- Run | Scr Mat Min Mat Min Exi Min Mat Fac Low Low Zio Pro Fac Low Low Dat Pro Fac Ext Cet Arc Hub Peak Influence 1957 | . 152 70 340 111 . 70 776 417 . . . . 157 . . . . 525 343 664 491 1957 Average Influence 218 | . 65 15 154 77 . 44 389 348 . . . . 42 . . . . 141 163 274 450 1099 Maximum Alert Level 5 | . . . 1 . . . 3 2 . . . . . . . . . 2 1 2 2 5 Low Security (%) 63 | 100 100 100 61 100 . 100 17 . . . . . 100 . . . . 78 71 62 . 4 Level 1 17 | . . . 38 . . . 36 44 . . . . . . . . . . 28 21 24 4 Level 2 13 | . . . . . . . 37 55 . . . . . . . . . 21 . 16 75 14 Level 3 3 | . . . . . . . 8 . . . . . . . . . . . . . . 36 Level 4 . | . . . . . . . . . . . . . . . . . . . . . . 11 Level 5 1 | . . . . . . . . . . . . . . . . . . . . . . 28 High Security . | . . . . . . . . . . . . . . . . . . . . . . . Max Security . | . . . . . . . . . . . . . . . . . . . . . . . Squads Dispatched 32 | . 2 . 4 . . . 9 1 . . . . 2 . . . . 6 2 . . 6 Investigation 14 | . . . 2 . . . 5 1 . . . . 1 . . . . 3 1 . . 1 Extermination 2 | . . . . . . . . . . . . . . . . . . 2 . . . . Reinforcement 11 | . 2 . 2 . . . 1 . . . . . 1 . . . . 1 1 . . 3 Assault 2 | . . . . . . . . . . . . . . . . . . . . . . 2 Garrison 3 | . . . . . . . 3 . . . . . . . . . . . . . . . Intercept . | . . . . . . . . . . . . . . . . . . . . . . . Construction Impeded 2 | . . . . . . . . . . . . . . . . . . . 1 . . 1 Haulers Reinforced 1 | . . . . . . . . . . . . . . . . . . . . . . 1 Stealth | -11 -10 -10 -9 -9 -9 -8 -8 -7 -7 -7 -7 -6 -6 -6 -6 -6 -5 -5 -5 -5 -5 -5 --------- Run | Scr Mat Min Mat Min Exi Min Mat Fac Low Low Zio Pro Fac Low Low Dat Pro Fac Ext Cet Arc Hub Distress Signals 17 | . . . 5 . . . 8 . . . . . . . . . . . 1 1 . 2 Communications Jammed . | . . . . . . . . . . . . . . . . . . . . . . . Distress Signals . | . . . . . . . . . . . . . . . . . . . . . . . Times Spotted 303 | . 41 3 39 4 . 3 82 8 2 . . 4 14 4 . . 7 10 18 15 7 42 Peak Tracking Total 12 | . 4 3 8 3 . 3 6 4 3 . . 4 4 4 . . 4 3 5 4 2 12 Tactical Retreats 31 | . 4 . 3 1 . . 8 2 2 . . 1 1 1 . . 2 1 2 . . 3 Traps | -11 -10 -10 -9 -9 -9 -8 -8 -7 -7 -7 -7 -6 -6 -6 -6 -6 -5 -5 -5 -5 -5 -5 ------- Run | Scr Mat Min Mat Min Exi Min Mat Fac Low Low Zio Pro Fac Low Low Dat Pro Fac Ext Cet Arc Hub Traps Triggered 15 | . . . 4 . . . 4 . . . . . . . . . . 2 3 . . 2 Indirectly . | . . . . . . . . . . . . . . . . . . . . . . . Trap Hack Attempts . | . . . . . . . . . . . . . . . . . . . . . . . Triggered . | . . . . . . . . . . . . . . . . . . . . . . . Disarmed . | . . . . . . . . . . . . . . . . . . . . . . . Reprogrammed . | . . . . . . . . . . . . . . . . . . . . . . . Reused . | . . . . . . . . . . . . . . . . . . . . . . . Traps Extracted . | . . . . . . . . . . . . . . . . . . . . . . . Installed . | . . . . . . . . . . . . . . . . . . . . . . . Triggered 1 | . . . . . . . . . . . . . . 1 . . . . . . . . Machines | -11 -10 -10 -9 -9 -9 -8 -8 -7 -7 -7 -7 -6 -6 -6 -6 -6 -5 -5 -5 -5 -5 -5 ---------- Run | Scr Mat Min Mat Min Exi Min Mat Fac Low Low Zio Pro Fac Low Low Dat Pro Fac Ext Cet Arc Hub Machines Disabled 38 | . . . 4 . . . 6 . . . . 1 . . . . . . . . 2 25 Max in Single Turn 9 | . . . 1 . . . 4 . . . . 1 . . . . . . . . 1 9 Garrison Access 1 | . . . . . . . 1 . . . . . . . . . . . . . . . Network Hub 3 | . . . . . . . . . . . . . . . . . . . . . . 3 Machines Sabotaged . | . . . . . . . . . . . . . . . . . . . . . . . Garrisons Compromised . | . . . . . . . . . . . . . . . . . . . . . . . Overloaded Fab Kills . | . . . . . . . . . . . . . . . . . . . . . . . Fab Network Shutdowns 1 | . . . . . . . . . . . . . . . . . . 1 . . . . Hacking | -11 -10 -10 -9 -9 -9 -8 -8 -7 -7 -7 -7 -6 -6 -6 -6 -6 -5 -5 -5 -5 -5 -5 --------- Run | Scr Mat Min Mat Min Exi Min Mat Fac Low Low Zio Pro Fac Low Low Dat Pro Fac Ext Cet Arc Hub Machines Accessed 76 | . 4 1 7 . 1 . 9 4 . 1 . 1 11 3 2 4 . 15 7 1 . 5 Terminals 47 | . 4 1 5 . . . 7 3 . . . . 6 . . . . 8 7 1 . 5 Fabricators 5 | . . . . . . . . . . . . . 2 . . . . 3 . . . . Repair Stations 5 | . . . . . . . . 1 . . . . 2 . . . . 2 . . . . Recycling Units 1 | . . . 1 . . . . . . . . . . . . . . . . . . . Scanalyzers 2 | . . . 1 . . . 1 . . . . . . . . . . . . . . . Garrison Access 4 | . . . . . . . 1 . . . . . 1 . . . . 2 . . . . Total Hacks 246 | . 11 2 16 . 1 . 27 18 . 1 . 1 33 8 7 30 . 62 20 1 . 8 Successful 174 | . 5 2 10 . 1 . 12 10 . 1 . 1 28 8 7 30 . 42 15 1 . 1 Failed 70 | . 6 . 6 . . . 15 8 . . . . 4 . . . . 19 5 . . 7 Catastrophic 11 | . . . . . . . 4 . . . . . 1 . . . . 2 . . . 4 Database Lockouts 2 | . . . . . . . . . . . . . 1 . . . . 1 . . . . Manual 127 | . 10 2 11 . . . 15 9 . . 1 . 17 . . . . 36 19 1 . 6 Terminals 145 | . 11 2 12 . . . 23 13 . . . . 19 . . . . 36 20 1 . 8 Fabricators 23 | . . . . . . . . . . . . . 7 . . . . 16 . . . . Repair Stations 18 | . . . . . . . . 5 . . . . 6 . . . . 7 . . . . Recycling Units 2 | . . . 2 . . . . . . . . . . . . . . . . . . . Scanalyzers 5 | . . . 2 . . . 3 . . . . . . . . . . . . . . . Garrison Access 5 | . . . . . . . 1 . . . . . 1 . . . . 3 . . . . Terminal Hacks 100 | . 1 2 4 . 1 . 7 4 . 1 . 1 11 8 7 30 . 16 5 1 . 1 Record 25 | . . . . . 1 . . . . . . 1 . 6 6 11 . . . . . . Part Schematic 17 | . . . . . . . . 1 . . . . 3 . . 9 . 4 . . . . Robot Schematic 7 | . . . . . . . . . . . . . . . . 7 . . . . . . Robot Analysis 5 | . . 2 . . . . . . . . . . . . . . . 3 . . . . Prototype ID Bank 4 | . . . . . . . 1 . . . . . . . . 3 . . . . . . Open Door 6 | . . . . . . . . . . 1 . . . 2 1 . . 1 . 1 . . Branch Access Points 3 | . . . . . . . . 1 . . . . 1 . . . . 1 . . . . Terminal Index 2 | . . . . . . . . 1 . . . . 1 . . . . . . . . . Fabricator Index 1 | . . . . . . . . . . . . . 1 . . . . . . . . . Alert Level 1 | . . . 1 . . . . . . . . . . . . . . . . . . . Unreport Threat 11 | . . . 2 . . . 3 . . . . . 1 . . . . 3 2 . . . Locate Traps 4 | . 1 . . . . . 1 . . . . . 1 . . . . . 1 . . . Surveillance Status 1 | . . . . . . . . . . . . . . . . . . 1 . . . . Recall Investigation 4 | . . . . . . . . . . . . . 1 . . . . 2 . . . 1 Recall Reinforcements 1 | . . . . . . . . . . . . . 1 . . . . . . . . . Hauler Manifests 2 | . . . 1 . . . 1 . . . . . . . . . . . . . . . Zone Layout 6 | . . . . . . . 1 1 . . . . 1 . . . . 1 2 . . . Fabricator Hacks 14 | . . . . . . . . . . . . . 5 . . . . 9 . . . . Network Status 2 | . . . . . . . . . . . . . 1 . . . . 1 . . . . Load Schematic 6 | . . . . . . . . . . . . . 2 . . . . 4 . . . . Build 6 | . . . . . . . . . . . . . 2 . . . . 4 . . . . Repair Station Hacks 15 | . . . . . . . . 4 . . . . 6 . . . . 5 . . . . Scan Component 8 | . . . . . . . . 2 . . . . 3 . . . . 3 . . . . Repair 7 | . . . . . . . . 2 . . . . 3 . . . . 2 . . . . Recycling Unit Hacks . | . . . . . . . . . . . . . . . . . . . . . . . Scanalyzer 4 | . . . 2 . . . 2 . . . . . . . . . . . . . . . Insert Component 2 | . . . 1 . . . 1 . . . . . . . . . . . . . . . Analyze 2 | . . . 1 . . . 1 . . . . . . . . . . . . . . . Garrison Access Hacks 1 | . . . . . . . 1 . . . . . . . . . . . . . . . Seal Access 1 | . . . . . . . 1 . . . . . . . . . . . . . . . Unauthorized Hacks 40 | . 4 . 4 . . . 2 2 . . . . 6 . . . . 12 10 . . . Terminals 31 | . 4 . 4 . . . 2 2 . . . . 3 . . . . 6 10 . . . Track 4 | . 1 . . . . . . . . . . . . . . . . . 3 . . . Assimilate 4 | . 1 . 1 . . . . . . . . . . . . . . 2 . . . . Botnet 15 | . 2 . 1 . . . 1 2 . . . . 3 . . . . 3 3 . . . Disrupt 7 | . . . 2 . . . 1 . . . . . . . . . . . 4 . . . Operators 1 | . . . . . . . . . . . . . . . . . . 1 . . . . Fabricators 5 | . . . . . . . . . . . . . 2 . . . . 3 . . . . Report 1 | . . . . . . . . . . . . . . . . . . 1 . . . . Siphon 4 | . . . . . . . . . . . . . 2 . . . . 2 . . . . Repair Stations . | . . . . . . . . . . . . . . . . . . . . . . . Recycling Units . | . . . . . . . . . . . . . . . . . . . . . . . Scanalyzers . | . . . . . . . . . . . . . . . . . . . . . . . Garrison Access 4 | . . . . . . . . . . . . . 1 . . . . 3 . . . . Broadcast 1 | . . . . . . . . . . . . . . . . . . 1 . . . . Decoy 1 | . . . . . . . . . . . . . . . . . . 1 . . . . Reprogram 2 | . . . . . . . . . . . . . 1 . . . . 1 . . . . Data Cores Recovered . | . . . . . . . . . . . . . . . . . . . . . . . Used . | . . . . . . . . . . . . . . . . . . . . . . . Hacking Detections 46 | . 3 1 4 . . . 6 3 . . . . 6 . . . . 12 5 2 . 4 Full Trace Events 10 | . . . 2 . . . 3 1 . . . . . . . . . 2 1 . . 1 Feedback Events . | . . . . . . . . . . . . . . . . . . . . . . . Feedback Blocked . | . . . . . . . . . . . . . . . . . . . . . . . Robot Schematics Acquired 7 | . . . . . . . . . . . . . . . . 7 . . . . . . Robots Built . | . . . . . . . . . . . . . . . . . . . . . . . Matter . | . . . . . . . . . . . . . . . . . . . . . . . Time . | . . . . . . . . . . . . . . . . . . . . . . . Total Robot Build Rating . | . . . . . . . . . . . . . . . . . . . . . . . Part Schematics Acquired 19 | . . . 1 . . . 1 1 . . . . 3 . . 9 . 4 . . . . Parts Built 8 | . . . . . . . . . . . . . 3 . . . . 5 . . . . Matter 1425 | . . . . . . . . . . . . . 497 . . . . 928 . . . . Time 482 | . . . . . . . . . . . . . 182 . . . . 300 . . . . Total Part Build Rating 49 | . . . . . . . . . . . . . 17 . . . . 32 . . . . Parts Repaired 7 | . . . . . . . . 2 . . . . 3 . . . . 2 . . . . Time 300 | . . . . . . . . 38 . . . . 105 . . . . 157 . . . . Parts Recycled . | . . . . . . . . . . . . . . . . . . . . . . . Recycled Matter . | . . . . . . . . . . . . . . . . . . . . . . . Retrieved Matter . | . . . . . . . . . . . . . . . . . . . . . . . Retrieved Components . | . . . . . . . . . . . . . . . . . . . . . . . Parts Scanalyzed 2 | . . . 1 . . . 1 . . . . . . . . . . . . . . . Part Schematics Acquired 2 | . . . 1 . . . 1 . . . . . . . . . . . . . . . Parts Damaged . | . . . . . . . . . . . . . . . . . . . . . . . Bothacking | -11 -10 -10 -9 -9 -9 -8 -8 -7 -7 -7 -7 -6 -6 -6 -6 -6 -5 -5 -5 -5 -5 -5 ------------ Run | Scr Mat Min Mat Min Exi Min Mat Fac Low Low Zio Pro Fac Low Low Dat Pro Fac Ext Cet Arc Hub Used RIF Installer . | . . . . . . . . . . . . . . . . . . . . . . . Robots Hacked . | . . . . . . . . . . . . . . . . . . . . . . . Non-combat . | . . . . . . . . . . . . . . . . . . . . . . . Combat . | . . . . . . . . . . . . . . . . . . . . . . . Robot Hacks Applied . | . . . . . . . . . . . . . . . . . . . . . . . Relay Couplers Released . | . . . . . . . . . . . . . . . . . . . . . . . Robots Rewired 15 | . . . . . . . . . . . . . . . . . . . 15 . . . Allies Hacked . | . . . . . . . . . . . . . . . . . . . . . . . Hacks Repelled . | . . . . . . . . . . . . . . . . . . . . . . . Allies | -11 -10 -10 -9 -9 -9 -8 -8 -7 -7 -7 -7 -6 -6 -6 -6 -6 -5 -5 -5 -5 -5 -5 -------- Run | Scr Mat Min Mat Min Exi Min Mat Fac Low Low Zio Pro Fac Low Low Dat Pro Fac Ext Cet Arc Hub Total Allies 32 | . . . 1 4 . . . . . . . . . . . . 1 3 18 5 . . Largest Group 16 | . . . 1 4 . . . . . . . . . . . . 1 2 12 16 15 13 Highest-Rated Group 912 | . . . 10 71 . . . . . . . . . . . . 94 52 473 912 881 700 Highest-Rated Ally 156 | . . . 10 31 . . . . . . . . . . . . 94 41 156 156 156 94 Total Orders 12 | . . . . . . . . . . . . . . . . . . 8 2 . . 2 STAY 6 | . . . . . . . . . . . . . . . . . . 4 1 . . 1 FOLLOW 6 | . . . . . . . . . . . . . . . . . . 4 1 . . 1 Ally Attacks 220 | . . . . 5 . . . . . . . . . . . . 7 1 55 40 27 85 Total Damage 5636 | . . . . 12 . . . . . . . . . . . . 139 102 1093 1144 696 2450 Kills 37 | . . . . . . . . . . . . . . . . . . . 8 8 2 19 Allies Corrupted 1 | . . . . . . . . . . . . . . . . . . . . . . 1 Allies Melted 1 | . . . . . . . . . . . . . . . . . 1 . . . . . Intel | -11 -10 -10 -9 -9 -9 -8 -8 -7 -7 -7 -7 -6 -6 -6 -6 -6 -5 -5 -5 -5 -5 -5 ------- Run | Scr Mat Min Mat Min Exi Min Mat Fac Low Low Zio Pro Fac Low Low Dat Pro Fac Ext Cet Arc Hub Robot Analysis Total 5 | . . 2 . . . . . . . . . . . . . . . 3 . . . . Derelict Logs Recovered 8 | . . 1 . 1 . . . . 2 . 1 2 . . 1 . . . . . . . Drone Launches . | . . . . . . . . . . . . . . . . . . . . . . . Drone Recoveries . | . . . . . . . . . . . . . . . . . . . . . . . Exploration | -11 -10 -10 -9 -9 -9 -8 -8 -7 -7 -7 -7 -6 -6 -6 -6 -6 -5 -5 -5 -5 -5 -5 ------------- Run | Scr Mat Min Mat Min Exi Min Mat Fac Low Low Zio Pro Fac Low Low Dat Pro Fac Ext Cet Arc Hub Turns Passed 13654 | 119 1709 731 1383 552 838 110 2635 184 211 141 351 222 764 246 220 30 185 1153 1034 300 99 437 Spaces Moved 13513 | 64 856 435 703 286 522 57 1179 303 434 370 916 486 1431 518 478 91 483 1833 1197 236 129 506 Core 173 | 2 . . . . . . 1 . . . . . . . . . . . 10 . . 160 Treads 3774 | 62 856 435 378 286 522 57 1178 . . . . . . . . . . . . . . . Legs 325 | . . . 325 . . . . . . . . . . . . . . . . . . . Wheels . | . . . . . . . . . . . . . . . . . . . . . . . Hover . | . . . . . . . . . . . . . . . . . . . . . . . Flight 9241 | . . . . . . . . 303 434 370 916 486 1431 518 478 91 483 1833 1187 236 129 346 Fastest Speed 23 | 50 160 160 130 160 160 160 155 30 30 30 30 30 30 30 30 30 30 23 25 25 29 29 Average Speed 70 | 156 160 160 146 160 160 160 162 30 30 30 30 30 30 36 34 30 30 26 40 25 29 44 Slowest Speed 900 | 160 160 160 180 160 160 160 900 30 30 30 30 30 109 103 103 30 30 101 100 29 29 250 Overloaded Moves 88 | . . . . . . . . . . . . . . . . . . 88 . . . . Propulsion Burnouts . | . . . . . . . . . . . . . . . . . . . . . . . Robots Hopped 25 | . . . . . . . . 6 . . . 1 3 . . . . 4 10 . . 1 Cave-ins Triggered 1 | . . . . . . . . . . . . . . . . . . . . . . 1 Exploration Rate (%) 60 | 6 96 72 60 64 60 26 98 9 58 63 88 66 33 58 54 74 62 32 91 74 86 62 Regions Visited 22 Branch Regions 16 Pre-discovered Areas 8 | . . . . 1 1 . . . 1 . 1 2 . 1 . 1 . . . . . . Known Exits Taken 14 | . . . . . . . . 1 1 1 1 1 1 1 1 1 1 1 1 1 1 . Unknown Exits Taken 8 | 1 1 1 1 1 1 1 1 . . . . . . . . . . . . . . . Scrap Searched 12 | . . 2 . . . . . . 2 2 1 2 . . 2 . 1 . . . . . Spaces Dug 37 | . . . . . . . . . 2 . . . 8 2 . . 3 14 2 . . 6 Terrain Destroyed 643 | . . . . 14 . . 55 . 2 . . . 8 2 . . 3 14 2 2 9 532 Melee 37 | . . . . . . . . . 2 . . . 8 2 . . 3 14 2 . . 6 Projectile 38 | . . . . . . . 9 . . . . . . . . . . . . 2 9 18 AOE 568 | . . . . 14 . . 46 . . . . . . . . . . . . . . 508 Actions | -11 -10 -10 -9 -9 -9 -8 -8 -7 -7 -7 -7 -6 -6 -6 -6 -6 -5 -5 -5 -5 -5 -5 --------- Run | Scr Mat Min Mat Min Exi Min Mat Fac Low Low Zio Pro Fac Low Low Dat Pro Fac Ext Cet Arc Hub Total 16551 | 80 1064 454 915 376 525 64 1627 377 511 400 982 560 1727 558 522 93 513 2370 1594 443 168 628 Wait 1887 | 7 85 5 57 75 . . 188 42 76 25 61 66 249 27 34 3 22 425 194 172 25 49 Move 13444 | 63 855 434 702 285 521 56 1178 290 433 369 915 483 1425 517 477 90 482 1824 1178 235 128 504 Hop 22 | . . . . . . . . 6 . . . 1 2 . . . . 4 8 . . 1 Pick Up 86 | 4 10 1 15 5 2 . 12 3 . 3 . 5 9 . 1 . . 6 3 5 2 . Fast Attach 89 | 6 4 . 21 . . 1 20 3 . . . . 7 2 . . . 11 2 3 . 9 Attach 60 | . 2 . 4 1 . . 9 7 . . . 1 2 2 2 . 2 12 6 2 1 7 Detach 21 | . . . . . . . . . . . . . . 2 2 . 2 10 3 . . 2 Swap 71 | . 10 1 10 2 1 . 10 5 . . . . 3 . . . . 10 10 2 . 7 Drop 127 | . 14 2 24 5 1 1 29 12 . 3 . 3 10 1 1 . . 8 1 6 2 4 Fire 559 | . 83 11 81 3 . 6 181 . . . . . . 5 5 . 2 34 87 18 10 33 Melee 85 | . . . . . . . . 9 2 . 6 1 20 2 . . 3 26 9 . . 7 Ram 5 | . . . . . . . . . . . . . . . . . . . . . . 5 Kick 1 | . . . 1 . . . . . . . . . . . . . . . . . . . Crush 1 | . 1 . . . . . . . . . . . . . . . . . . . . . Escape Stasis 47 | . . . . . . . . . . . . . . . . . . . 47 . . . Rewire 46 | . . . . . . . . . . . . . . . . . . . 46 . . . Trap . | . . . . . . . . . . . . . . . . . . . . . . . Miscellaneous . | . . . . . . . . . . . . . . . . . . . . . . . Route ------- -11/Scrapyard -10/Materials (discovered 4 exits: *Mat x3 / *Min) -10/Mines (discovered 2 exits: *Mat x2) -9/Materials (discovered 2 exits: *Mat / [*Min]) -9/Mines (discovered 3 exits: *Mat x2 / *Exi) -9/Exiles -8/Mines -8/Materials (discovered 3 exits: *Fac x3) -7/Factory (discovered 4 exits: Sto x2 / *Low x2) -7/Lower Caves -7/Lower Caves -7/Zion -6/Proximity Caves -6/Factory (discovered 3 exits: *Fac / *Low x2) -6/Lower Caves -6/Lower Caves (discovered 2 exits: Fac / *Dat) -6/Data Miner -5/Proximity Caves -5/Factory (discovered 7 exits: *Fac x3 / Upp x2 / *Ext x2) -5/Extension (discovered 2 exits: *Fac / *Cet) -5/Cetus (discovered 2 exits: *Fac / *Arc) -5/Archives (discovered 2 exits: *Hub x2) -5/Hub_04(d) (discovered 4 exits: *Fac x4) History --------- Turn | Location | Event 7 | -11/Scrapyard | Discovered new exit (range 15) 120 | -11/Scrapyard | Entered Materials 332 | -10/Materials | Build established: Mutant 567 | -10/Materials | Discovered new exit (range 5) 865 | -10/Materials | Discovered new exit (range 15) 1150 | -10/Materials | Discovered new exit (range 7) 1338 | -10/Materials | Discovered new exit (range 13) 1829 | -10/Materials | Entered Mines 1871 | -10/Mines | Met a Derelict bent on vengeance 2093 | -10/Mines | Discovered new exit (range 5) 2171 | -10/Mines | Learned Materials stockpile data 2233 | -10/Mines | Discovered new exit (range 15) 2560 | -10/Mines | Entered Materials 2560 | -9/Materials | Evolved 2 slots: Propulsion x1, Utility x1 3218 | -9/Materials | Discovered new exit (range 14) 3763 | -9/Materials | Core integrity fell below 50% 3863 | -9/Materials | Discovered new exit (range 13) 3943 | -9/Materials | Entered Mines 4013 | -9/Mines | Assisted by bots powering up and referring to "LRC-V3" 4043 | -9/Mines | A weapon hastily lodged in a ceiling crevice suddenly fell to the ground 4089 | -9/Mines | Received a Mining Laser from a helpful Derelict 4132 | -9/Mines | Discovered new exit (range 15) 4268 | -9/Mines | Discovered new exit (range 12) 4338 | -9/Mines | Found a damaged Exp. Sensor Array with a note attached 4473 | -9/Mines | Learned location of Zion (-7) 4489 | -9/Mines | Deemed a non-threat by the Exiles lab entrance 4489 | -9/Mines | Discovered new exit (range 5) 4495 | -9/Mines | Entered Exiles 4532 | -9/Exiles | Met 8R-AWN 4561 | -9/Exiles | Met EX-HEX 4625 | -9/Exiles | Met EX-DEC 4646 | -9/Exiles | Met EX-BIN 5315 | -9/Exiles | Discovered new exit (range 14) 5333 | -9/Exiles | Entered Mines 5430 | -8/Mines | Discovered new exit (range 8) 5443 | -8/Mines | Entered Materials 5443 | -8/Materials | Evolved 2 slots: Utility x2 5646 | -8/Materials | Garrison activated, responded to threat 6039 | -8/Materials | Build established: Scavenger-Mutant 6203 | -8/Materials | Lost 3 parts (1n1u1w) 6237 | -8/Materials | Discovered new exit (range 13) 6808 | -8/Materials | Core integrity fell below 50% 6893 | -8/Materials | Discovered new exit (range 16) 7281 | -8/Materials | Build established: Mutant 7896 | -8/Materials | Discovered new exit (range 10) 8078 | -8/Materials | Entered Factory 8078 | -7/Factory | Evolved 2 slots: Utility x2 8155 | -7/Factory | Identified exit to Storage 8155 | -7/Factory | Identified exit to Lower Caves 8207 | -7/Factory | Repaired Cesium-ion Thruster 8227 | -7/Factory | Repaired Lgt. Deuterium Engine 8262 | -7/Factory | Entered Lower Caves 8266 | -7/Lower Caves | Encountered a Warlord checkpoint 8472 | -7/Lower Caves | Discovered new exit (range 6) 8473 | -7/Lower Caves | Identified exit to Lower Caves 8473 | -7/Lower Caves | Entered another Lower Caves area 8497 | -7/Lower Caves | Found Prototype Device 8520 | -7/Lower Caves | Build established: Hacker-Sprinter 8526 | -7/Lower Caves | Encountered a Warlord checkpoint 8608 | -7/Lower Caves | Discovered new exit (range 10) 8613 | -7/Lower Caves | Identified exit to Zion 8614 | -7/Lower Caves | Entered Zion 8643 | -7/Zion | Received a visual enhancement algorithm 8646 | -7/Zion | Discovered new exit (range 12) 8720 | -7/Zion | Visited the Megawrench Repair Shop 8748 | -7/Zion | Learned location of Armory (-3) 8965 | -7/Zion | Identified exit to Proximity Caves 8965 | -7/Zion | Entered Proximity Caves 8971 | -6/Proximity Caves | Found Alien Artifact 9063 | -6/Proximity Caves | Attacked by a faux Warlord 9182 | -6/Proximity Caves | Discovered new exit (range 14) 9187 | -6/Proximity Caves | Identified exit to Factory 9187 | -6/Proximity Caves | Entered Factory 9187 | -6/Factory | Evolved 2 slots: Utility x2 9498 | -6/Factory | Fabricated Hyp. Coil Gun (x2) 9518 | -6/Factory | Build established: Wizard-Sprinter 9684 | -6/Factory | Repaired Nuclear Pulse Thruster 9697 | -6/Factory | Central database locked down 9697 | -6/Factory | Identified exit to Lower Caves 9779 | -6/Factory | Repaired Imp. VTOL Module 9816 | -6/Factory | Fabricated Exp. Sensor Array? 9822 | -6/Factory | Repaired Imp. Armor Integrity Analyzer 9886 | -6/Factory | Discovered new exit (range 9) 9951 | -6/Factory | Entered Lower Caves 9964 | -6/Lower Caves | Learned location of Extension (-5) 9964 | -6/Lower Caves | Learned location of 1 exit from Research 9964 | -6/Lower Caves | Learned 8 Factory zone layouts 9964 | -6/Lower Caves | Learned Armory trap positions 9964 | -6/Lower Caves | Learned Extension stockpile data 10015 | -6/Lower Caves | Found Alien Artifact 10015 | -6/Lower Caves | Identified Core Expander 10015 | -6/Lower Caves | Installed Core Expander, added new Weapon slot 10194 | -6/Lower Caves | Discovered new exit (range 8) 10196 | -6/Lower Caves | Identified exit to Lower Caves 10197 | -6/Lower Caves | Entered another Lower Caves area 10228 | -6/Lower Caves | Learned Factory interactive machine intel 10401 | -6/Lower Caves | Identified exit to Factory 10401 | -6/Lower Caves | Learned Extension stockpile data 10401 | -6/Lower Caves | Learned Research security intel 10401 | -6/Lower Caves | Learned Armory security intel 10415 | -6/Lower Caves | Discovered new exit (range 9) 10417 | -6/Lower Caves | Identified exit to Data Miner 10417 | -6/Lower Caves | Entered Data Miner 10417 | -6/Data Miner | Discovered new exit (range 6) 10423 | -6/Data Miner | Met Data Miner 10432 | -6/Data Miner | Learned location of Section 7 (-3) 10432 | -6/Data Miner | Acquired the access code to Warlord's prototype stash 10441 | -6/Data Miner | Received God Mode back door access code from Data Miner 10447 | -6/Data Miner | Identified exit to Proximity Caves 10447 | -6/Data Miner | Entered Proximity Caves 10529 | -5/Proximity Caves | Escorted by Enhanced Grunt 10629 | -5/Proximity Caves | Attracted the attention of an 0b10 checkpoint 10632 | -5/Proximity Caves | Entered Factory 10632 | -5/Factory | Evolved 2 slots: Utility x2 10633 | -5/Factory | Identified exit to Factory 10633 | -5/Factory | Identified exit to Extension 10635 | -5/Factory | Loaded intel: 48 interactive machine locations 10725 | -5/Factory | Fabricated Exp. Cesium-ion Thruster (x1) 10771 | -5/Factory | Discovered exit to Factory (range 6) 10780 | -5/Factory | Identified exit to Upper Caves 11165 | -5/Factory | Fabricated Hyp. Railgun (x2) 11332 | -5/Factory | Fabricated Exp. Terrain Scanner? 11400 | -5/Factory | Incoming investigation squad redirected 11459 | -5/Factory | Fabricated Exp. Terrain Scan Processor? 11533 | -5/Factory | Local fabrication network quarantined 11559 | -5/Factory | Repaired Hyp. Railgun 11649 | -5/Factory | Repaired Exp. Cesium-ion Thruster 11782 | -5/Factory | Central database locked down 11785 | -5/Factory | Entered Extension 12115 | -5/Extension | Rescued a captive Derelict 12320 | -5/Extension | Warlord forces began an assault 12435 | -5/Extension | Disrupted transfer network 12602 | -5/Extension | Lost 4 parts (1n3w) 12642 | -5/Extension | Rescued a captive Derelict 12644 | -5/Extension | Rescued a captive Derelict 12647 | -5/Extension | Rescued A7 12741 | -5/Extension | Discovered exit to Factory (range 10) 12742 | -5/Extension | Discovered new exit (range 6) 12744 | -5/Extension | Identified exit to Cetus 12819 | -5/Extension | Entered Cetus 12819 | -5/Cetus | Accompanied by 12 allies 12824 | -5/Cetus | Acquired a Cetus Manufacturing Module code from A7 12830 | -5/Cetus | Spotted Cetus Guard 12830 | -5/Cetus | Spotted Cetus Guard 12831 | -5/Cetus | Spotted Cetus Guard 12831 | -5/Cetus | Destroyed Cetus Guard 12832 | -5/Cetus | Spotted Cetus Guard 12839 | -5/Cetus | Allies destroyed Cetus Guard 12841 | -5/Cetus | Destroyed Cetus Guard 12845 | -5/Cetus | Allies destroyed Cetus Guard 12859 | -5/Cetus | Started Cetus Manufacturing Module 12872 | -5/Cetus | Escorted A7 to Cetus Mainframe 12874 | -5/Cetus | Discovered new exit (range 22) 12884 | -5/Cetus | Manufactured an Enhanced Grunt 12909 | -5/Cetus | Manufactured an Enhanced Grunt 12934 | -5/Cetus | Manufactured an Enhanced Grunt 12959 | -5/Cetus | Manufactured an Enhanced Grunt 12984 | -5/Cetus | Manufactured an Enhanced Grunt 13006 | -5/Cetus | Spotted Cetus Guard 13006 | -5/Cetus | Spotted Cetus Guard 13006 | -5/Cetus | Spotted Cetus Guard 13006 | -5/Cetus | Spotted Cetus Guard 13010 | -5/Cetus | Destroyed Cetus Guard 13013 | -5/Cetus | Discovered exit to Factory (range 22) 13022 | -5/Cetus | Allies destroyed Cetus Guard 13024 | -5/Cetus | Destroyed Cetus Guard 13028 | -5/Cetus | Allies destroyed Cetus Guard 13030 | -5/Cetus | Met Revision 17 13044 | -5/Cetus | Identified exit to Archives 13119 | -5/Cetus | Entered Archives 13119 | -5/Archives | Accompanied by 15 allies 13124 | -5/Archives | Received a hacking code to weaken MAIN.C 13136 | -5/Archives | Discovered new exit (range 22) 13153 | -5/Archives | Unable to access archive contents 13161 | -5/Archives | Discovered new exit (range 22) 13172 | -5/Archives | Identified exit to Hub_04(d) 13218 | -5/Archives | Entered Hub_04(d) 13218 | -5/Hub_04(d) | Accompanied by 13 allies 13255 | -5/Hub_04(d) | Discovered exit to Factory (range 12) 13447 | -5/Hub_04(d) | Discovered exit to Factory (range 24) 13515 | -5/Hub_04(d) | Crushed by falling debris 13515 | -5/Hub_04(d) | System corruption reached 10% 13518 | -5/Hub_04(d) | First assault squad dispatched 13529 | -5/Hub_04(d) | Network Hub disabled 13530 | -5/Hub_04(d) | Core integrity fell below 50% 13539 | -5/Hub_04(d) | Network Hub disabled 13548 | -5/Hub_04(d) | Incoming assault squad redirected 13550 | -5/Hub_04(d) | Incoming assault squad redirected 13559 | -5/Hub_04(d) | Spotted Lightning 13559 | -5/Hub_04(d) | Spotted Lightning 13580 | -5/Hub_04(d) | Discovered exit to Factory (range 28) 13588 | -5/Hub_04(d) | Lost 9 parts (1p3n5u) 13613 | -5/Hub_04(d) | Discovered exit to Factory (range 21) 13635 | -5/Hub_04(d) | Spotted Lightning 13647 | -5/Hub_04(d) | Core integrity fell below 20% 13651 | -5/Hub_04(d) | Network Hub disabled 13653 | -5/Hub_04(d) | Spotted Lightning 13653 | -5/Hub_04(d) | Spotted Lightning 13655 | -5/Hub_04(d) | Destroyed by Lightning with EMDS Last Messages --------------- 13634_ System corrupted: Matter fused (-7). 13636_ Penetrated by EMDS Slug. 13638_ EMDS Slug penetrates Wall. 13643_ HV Slug penetrates Wall. 13645_ System corrupted: Hyp. Coil Gun targeting data glitched. 13645_ HV Slug penetrates Wall. 13646_ Penetrated by EMDS Slug. 13648_ Hyp. Coil Gun destroyed. 13648_ Exp. Terrain Scanner destroyed. 13650_ Penetrated by EMDS Slug. 13650_ Slammed into Lightning. 13650_ Destabilizing: System interference. 13650_ Adv. Targeting Computer temporarily disabled. 13651_ ALERT: Network intrusion management efficiency at 65%. 13651_ System corrupted: Substantial component data lost. 13651_ Door malfunctions. 13651_ Control Node disabled. 13651_ Door malfunctions. 13653_ EMDS Slug penetrates Wall. 13655_ Penetrated by EMDS Slug. Map ----- +----------------------------------------------------+ | ?????????##?#?#??##??####??####################### | | ?????????#?##??##?####?########?#?################ | | ????????#?####???####????#?############?#?######## | | ????????#####################?#################### | | ?????????#??#?##############?#######?############# | | ???????#?###?##?##??##########?##?################ | | ??????#???####?##########?######################## | | ####################### ################ | | #################??#### ? ?###?######### | | ####?############?##### ############# | | # ##### ###?######### | | # #### ###?###?#### | | # """" """" #### ##########?# | | # """" """" #### ; ############ | | " # """" """" #### ; ##?########## | | # """" """" #### ; ########### | | # #### #### ## | | # """" """" ##### ;; ##### ""## | | #! """ """" ####### ; !/ # T"## | | # """ """" ######## ;# !/ + ""## | | #### """ """" ########## ### # ## | | #### ########## ### # """ ## | | ######+####################; ### # ## | | ####[=%*################### ##/#;;;;;;##+###### | | %==% h | | < @ | | #+## ### ########## ##; ##/######### #####+ | | # ####+########## ##;;;;## ## # | | ## # ##### ## ;;### """ ##" ] # | | ## + "" """ ##### + ##" # " | | " /= # "" ##### ######## """ ##" # " | | " ##!]# "T "" ####+######### ## # " | | " ##%!# "" [%=/ ## ##" # | | ##!!# " " # " " " " ##########" # "" " | | #####!%# # " " " " ##### ####" # ""G" | | ##### !# # " " ""G"" # #### ###### | | ##### # ######### #################### | | // # #####################+##################### | | // # # =## # ##################### | | / + # ] ## # ##################### | | # # ## """ """ # | | "" # / """" ## + | | # ## """" ## """ """ # | | #####*##! """" ## ### ############ %##### | | #####*## """" ## """ """ ### ############ ##### | | #####%## ## ### ############ # | | #####%## ############## ############ # """ | | #####%########################/############ %# """ | | ## ##### # ##### ### # """ | | ## "" # "" """ ##### !=% # | +----------------------------------------------------+ Best States ------------- Heat Dissipation 40 Energy Generation 18 Energy Capacity 280 Matter Stores 300 Matter Capacity 300 Sight Range 22 Robot Scan Range 30 Terrain Scan Range 30 Terrain Scan Density 1010 Additional Mass Support 9 Armor Coverage 225 Core Shielding 20 Propulsion Shielding 33 Weapon Cycling 15 Evasion (%) 74 Targeting Accuracy 16 Melee Accuracy 10 Target Analysis 6 Armor Integrity Analysis 50 Recoil Reduction 3 Offensive Hacking 46 Defensive Hacking 40 Item Schematics ----------------- Hacking Suite | -9/Materials | Scanalyzed Cesium-ion Thruster | -8/Materials | Scanalyzed Fusion Compressor | -7/Factory | Hacked Hyp. Coil Gun | -6/Factory | Hacked Xenon Bombardment Thruster | -6/Factory | Hacked Exp. Sensor Array | -6/Factory | Hacked Combat Drone Bay | -6/Data Miner | Free Lgt. Regenerative Plating | -6/Data Miner | Free Exp. Flexi-carbon Leg | -6/Data Miner | Free Exp. Cesium-ion Thruster | -6/Data Miner | Free Triangulator | -6/Data Miner | Free Exp. Terrain Scan Processor | -6/Data Miner | Free Tactical Coordination Suite | -6/Data Miner | Free Exp. ECM Suite | -6/Data Miner | Free Plasma Sword | -6/Data Miner | Free Exp. Terrain Scanner | -5/Factory | Hacked Exp. Signal Interpreter | -5/Factory | Hacked Hyp. Railgun | -5/Factory | Hacked Imp. Core Analyzer | -5/Factory | Hacked Robot Schematics ------------------ S-27 Virus | -6/Data Miner | Free G-50 Soldier | -6/Data Miner | Free G-67 Veteran | -6/Data Miner | Free X-72 Disruptor | -6/Data Miner | Free H-66 Slayer | -6/Data Miner | Free I-36 Angel | -6/Data Miner | Free I-47 Archangel | -6/Data Miner | Free Fabricated ------------ Hyp. Coil Gun | x2 | -6/Factory Exp. Sensor Array | x1 | -6/Factory Exp. Cesium-ion Thruster | x1 | -5/Factory Hyp. Railgun | x2 | -5/Factory Exp. Terrain Scanner | x1 | -5/Factory Exp. Terrain Scan Processor | x1 | -5/Factory Alien Tech Used ----------------- Core Expander Achievements -------------- None Challenges ------------ None Game ------ Seed HeavyZioniteChronowheel Manual? 0 Play Time 03:15:43 Cumulative 114.2 hours Start 2020.06.13 @ 22:14:16 End 2020.06.14 @ 16:36:12 Sessions 5 Manual Loads 0 Difficulty Rogue Special Mode None Game No. 49 Rogue 49 Adventurer 0 Explorer 0 Win Type - Total 6 Types 5/0/0/1/0/0/0 Lore% 67 Gallery% 62 Achievement% 54 Wizard Run 0 Options --------- ASCII 1 Keyboard 0 Movement Numpad Keybinds 0 Fullscreen 1 Font 18/SmallcapsGlow Map View 76x50 Tactical HUD 1 Map Filters NONE Filters NONE Steam 1 RUN: a55776a0-7ff2-4b18-be6d-3f361d02f75b